bitfinex/quotes_BTCUSD_20240902
["timestamp","ask_amount","ask_price","bid_price","bid_amount"]
[1725249087583,1.178709,57783.0,57775.0,0.008998]
[1725249087797,1.056811,57782.0,57775.0,0.008998]
[1725249088150,0.1,57781.0,57775.0,0.008998]
[1725249088376,0.697751,57780.0,57775.0,0.008998]
[1725249088588,0.1,57779.0,57775.0,0.008998]
[1725249088806,0.2022,57779.0,57775.0,0.008998]
[1725249089516,0.2022,57779.0,57776.0,4e-07]
[1725249089517,0.1016,57777.0,57776.0,4e-07]
[1725249089737,2.597276,57778.0,57771.0,4e-07]
[1725249089738,0.1002,57772.0,57771.0,4e-07]
[1725249089977,0.35621615,57772.0,57771.0,4e-07]
[1725249090197,0.35621615,57772.0,57761.0,1e-06]
[1725249090198,0.26521615,57762.0,57761.0,1e-06]
[1725249090407,0.0979,57755.0,57751.0,0.008998]
[1725249090639,0.25821615,57752.0,57751.0,0.008998]
[1725249090850,2.97849215,57752.0,57751.0,0.008998]
[1725249091277,1.564304,57752.0,57751.0,0.008998]
[1725249091488,0.718656,57752.0,57751.0,0.008998]
[1725249091723,0.698339,57752.0,57751.0,0.008998]
[1725249092360,0.1,57752.0,57751.0,0.008998]
[1725249092571,0.1,57758.0,57751.0,0.008998]
[1725249092805,1.190975,57758.0,57751.0,0.008998]
[1725249093101,1.130423,57757.0,57751.0,0.008998]
[1725249093312,0.009,57752.0,57751.0,0.008998]
[1725249093733,0.1,57756.0,57751.0,0.008998]
[1725249094576,0.1,57763.0,57752.0,0.1001]
[1725249094793,0.463543,57763.0,57753.0,0.0838]
[1725249094969,0.1,57763.0,57753.0,0.0838]
[1725249095202,0.1,57768.0,57753.0,0.0838]
[1725249095425,0.02717633,57770.0,57754.0,0.1001]
[1725249095642,0.20107019,57779.0,57757.0,0.1001]
[1725249095863,0.795481,57778.0,57757.0,0.1001]
[1725249096078,0.795481,57778.0,57756.0,0.346281]
[1725249096079,0.173119,57764.0,57759.0,0.1001]
[1725249096301,0.22824051,57779.0,57762.0,0.1001]
[1725249096302,0.173099,57771.0,57762.0,0.1001]
[1725249096521,0.05163433,57795.0,57770.0,0.1001]
[1725249096743,0.17306,57784.0,57779.0,0.1001]
[1725249096955,0.01,57797.0,57780.0,0.1001]
[1725249097203,0.173057,57785.0,57780.0,0.18101717]
[1725249097419,0.173067,57781.0,57780.0,0.0991]
[1725249098322,0.173073,57779.0,57778.0,0.0832]
[1725249098539,0.273073,57779.0,57778.0,0.0832]
[1725249099172,0.173116,57765.0,57764.0,0.0817]
[1725249099609,0.273116,57765.0,57764.0,0.09981835]
[1725249100714,0.274116,57765.0,57764.0,0.10181835]
[1725249100923,0.3015276,57765.0,57764.0,0.10181835]
[1725249101134,0.50159779,57765.0,57764.0,0.01811835]
[1725249101375,0.273116,57765.0,57764.0,0.01811835]
[1725249101603,0.274116,57765.0,57764.0,0.003]
[1725249102631,0.1,57765.0,57755.0,0.1008]
[1725249102877,0.173121,57764.0,57756.0,0.346283]
[1725249103086,0.1,57763.0,57760.0,0.0788]
[1725249103296,0.1,57763.0,57760.0,0.251929]
[1725249103711,0.1,57763.0,57761.0,0.01812661]
[1725249103916,0.1,57763.0,57762.0,0.0959]
[1725249104128,0.273118,57764.0,57762.0,0.0959]
[1725249104341,0.1,57764.0,57762.0,0.11402385]
[1725249104552,0.02716768,57781.0,57762.0,0.11402385]
[1725249104776,0.01271677,57780.0,57762.0,0.11402385]
[1725249104986,0.173112,57766.0,57762.0,0.11402385]
[1725249105201,0.1,57765.0,57763.0,0.08226207]
[1725249105414,0.01271677,57780.0,57763.0,0.08226207]
[1725249105415,0.173099,57771.0,57765.0,0.173114]
[1725249105637,0.273101,57770.0,57766.0,0.01811284]
[1725249105800,0.1,57770.0,57766.0,0.01711284]
[1725249106038,0.1,57770.0,57764.0,0.346234]
[1725249106434,0.1,57770.0,57765.0,0.0180656]
[1725249106648,0.1,57770.0,57766.0,0.17311]
[1725249107021,0.1,57770.0,57767.0,0.01806009]
[1725249107220,0.1,57770.0,57766.0,0.17311]
[1725249107425,0.101,57770.0,57767.0,0.01806009]
[1725249107947,0.101,57770.0,57764.0,0.348234]
[1725249107948,0.001,57770.0,57768.0,0.173105]
[1725249108290,0.001,57770.0,57769.0,0.1001]
[1725249108447,0.001,57770.0,57769.0,0.356203]
[1725249108654,0.000818,57781.0,57777.0,0.173078]
[1725249108875,0.000818,57781.0,57779.0,0.1831]
[1725249109122,0.000818,57781.0,57779.0,0.1855611]
[1725249109351,0.000818,57781.0,57780.0,0.01802431]
[1725249109579,0.000818,57781.0,57780.0,0.27609431]
[1725249109825,0.000818,57781.0,57780.0,0.085]
[1725249110045,0.000818,57781.0,57780.0,0.01802431]
[1725249110046,0.173885,57781.0,57780.0,0.01802431]
[1725249110645,0.173085,57775.0,57774.0,0.085]
[1725249111687,0.173085,57775.0,57746.0,0.0794]
[1725249111688,1.1296655,57775.0,57746.0,0.0794]
[1725249111855,0.173133,57759.0,57746.0,0.0794]
[1725249112081,0.986983,57759.0,57746.0,0.0794]
[1725249112297,1.10578832,57759.0,57746.0,0.0794]
[1725249112697,0.60450832,57759.0,57746.0,0.0794]
[1725249112905,0.485703,57759.0,57746.0,0.0794]
[1725249113285,0.68677319,57759.0,57746.0,0.0794]
[1725249113497,0.68677319,57759.0,57740.0,0.0998]
[1725249113705,0.69377319,57759.0,57758.0,0.0018998]
[1725249114121,0.68677319,57759.0,57758.0,0.0008998]
[1725249114339,0.75545051,57759.0,57758.0,0.0008998]
[1725249114520,0.59047319,57759.0,57758.0,0.0008998]
[1725249114943,0.87109219,57759.0,57758.0,0.0008998]
[1725249115375,0.59538619,57759.0,57758.0,0.0008998]
[1725249115575,0.60238619,57759.0,57758.0,0.0018998]
[1725249116045,0.59538619,57759.0,57758.0,0.0008998]
[1725249116224,0.60238619,57759.0,57758.0,0.0018998]
[1725249117325,0.59538619,57759.0,57758.0,0.0008998]
[1725249117530,0.5839404,57759.0,57758.0,0.0008998]
[1725249118803,0.5899404,57759.0,57758.0,0.0018998]
[1725249119008,0.26768721,57759.0,57758.0,0.0018998]
[1725249119226,0.4627574,57759.0,57758.0,0.0008998]
[1725249119440,0.4627574,57759.0,57758.0,0.0254359]
[1725249119441,0.16168721,57759.0,57758.0,0.0254359]
[1725249119663,0.16168721,57759.0,57758.0,0.0018998]
[1725249119664,0.16768721,57759.0,57758.0,0.0018998]
[1725249119883,0.006,57759.0,57758.0,0.0018998]
[1725249120089,0.20107019,57769.0,57758.0,0.12354602]
[1725249120298,0.20188819,57779.0,57764.0,0.173117]
[1725249120571,0.20188819,57779.0,57767.0,0.1027]
[1725249120779,0.000818,57779.0,57770.0,0.178098]
[1725249120983,0.000818,57779.0,57774.0,0.005]
[1725249121196,0.000818,57779.0,57775.0,0.00346087]
[1725249121408,0.000818,57779.0,57775.0,0.20101312]
[1725249121627,0.000818,57779.0,57775.0,0.02446925]
[1725249121864,0.000818,57779.0,57776.0,0.03856563]
[1725249122275,0.000818,57779.0,57777.0,0.02446139]
[1725249123186,0.000818,57779.0,57778.0,0.00346087]
[1725249123187,0.001818,57779.0,57778.0,0.00346087]
[1725249123405,0.001818,57779.0,57777.0,0.02446139]
[1725249123616,0.001818,57779.0,57778.0,0.02445746]
[1725249123826,0.000818,57779.0,57778.0,0.12995746]
[1725249124044,0.001818,57779.0,57778.0,0.38308701]
[1725249124254,0.001818,57779.0,57778.0,0.40754447]
[1725249124700,0.001818,57779.0,57778.0,0.21045746]
[1725249124906,0.001818,57779.0,57778.0,0.02445746]
[1725249125331,0.000818,57779.0,57778.0,0.02445746]
[1725249125754,0.000818,57779.0,57777.0,0.012]
[1725249125971,0.000818,57779.0,57765.0,0.1832]
[1725249125972,0.20107019,57778.0,57765.0,0.1832]
[1725249126189,0.000818,57779.0,57765.0,0.1832]
[1725249126190,0.20107019,57773.0,57765.0,0.1832]
[1725249126415,0.20107019,57773.0,57766.0,0.02450464]
[1725249127336,0.1,57777.0,57767.0,0.00346176]
[1725249127551,0.000818,57779.0,57773.0,0.1041]
[1725249127968,0.000818,57779.0,57774.0,0.02447318]
[1725249128673,0.00750561,57794.0,57775.0,0.0838]
[1725249128884,0.20107019,57791.0,57776.0,0.03904632]
[1725249129118,0.20107019,57791.0,57776.0,0.06351164]
[1725249129764,0.20107019,57791.0,57776.0,0.23659364]
[1725249130005,0.000818,57781.0,57776.0,0.23659364]
[1725249130224,0.000818,57781.0,57776.0,0.02446532]
[1725249130439,0.000818,57781.0,57776.0,0.02646532]
[1725249132323,0.000818,57781.0,57776.0,0.02446532]
[1725249132573,0.000818,57781.0,57776.0,0.03646532]
[1725249136737,0.000818,57781.0,57777.0,0.173078]
[1725249136950,0.000818,57781.0,57780.0,0.64221]
[1725249137165,0.000818,57781.0,57780.0,1.09475]
[1725249137372,0.000818,57802.0,57792.0,0.1894]
[1725249137584,0.000818,57802.0,57794.0,0.002]
[1725249137793,0.000818,57802.0,57795.0,0.00345975]
[1725249138005,0.000818,57802.0,57796.0,0.05703153]
[1725249138216,0.000818,57802.0,57797.0,0.17647666]
[1725249138427,0.000818,57802.0,57797.0,0.20085946]
[1725249138639,0.000818,57802.0,57798.0,0.00345963]
[1725249138824,0.000818,57802.0,57801.0,0.173007]
[1725249139099,0.000818,57802.0,57801.0,0.02464089]
[1725249139516,0.000818,57802.0,57797.0,0.014]
[1725249139741,0.01893336,57802.0,57797.0,0.014]
[1725249139955,0.01893336,57802.0,57798.0,0.02465267]
[1725249140381,0.01893336,57802.0,57801.0,0.014]
[1725249140768,0.11893336,57802.0,57801.0,0.014]
[1725249142267,0.11893336,57802.0,57791.0,0.0811]
[1725249142477,0.01893336,57802.0,57791.0,0.254136]
[1725249142705,0.01893336,57802.0,57798.0,0.014]
[1725249143184,0.01893336,57802.0,57799.0,0.02464874]
[1725249143393,0.01893336,57802.0,57801.0,0.014]
[1725249143842,0.01893336,57802.0,57793.0,0.21130082]
[1725249144258,0.01893336,57802.0,57798.0,0.014]
[1725249144672,0.01893336,57802.0,57799.0,0.02464874]
[1725249146611,0.01893336,57802.0,57793.0,0.05227082]
[1725249146612,0.01893336,57802.0,57793.0,0.014]
[1725249146826,0.01893336,57802.0,57800.0,0.02464482]
[1725249147032,0.01893336,57802.0,57791.0,0.5582]
[1725249147240,0.01893336,57802.0,57799.0,0.014]
[1725249147674,0.01893336,57802.0,57801.0,0.258507]
[1725249147884,0.01893336,57802.0,57801.0,0.703621]
[1725249148106,0.000818,57827.0,57807.0,0.0968]
[1725249148325,0.000818,57817.0,57816.0,0.1807]
[1725249148532,0.000818,57817.0,57816.0,0.70304544]
[1725249148749,0.000818,57817.0,57816.0,1.28688367]
[1725249149015,0.000818,57827.0,57826.0,0.90056719]
[1725249149227,0.000818,57846.0,57836.0,0.172902]
[1725249149443,0.000818,57846.0,57836.0,0.27315938]
[1725249149651,0.000818,57846.0,57836.0,0.29792394]
[1725249149857,0.000818,57846.0,57836.0,0.37932394]
[1725249150077,0.000818,57846.0,57836.0,0.20642194]
[1725249150317,0.000818,57846.0,57836.0,0.24585493]
[1725249150554,0.000818,57846.0,57836.0,0.25985493]
[1725249150785,0.000818,57846.0,57836.0,0.25639755]
[1725249151845,0.000818,57846.0,57836.0,0.03876456]
[1725249151846,0.20107019,57841.0,57836.0,0.03876456]
[1725249152264,0.20107019,57841.0,57836.0,0.014]
[1725249152919,0.20107019,57841.0,57820.0,0.1813]
[1725249152920,0.11348,57837.0,57820.0,0.1813]
[1725249153126,0.20107019,57835.0,57822.0,0.50540786]
[1725249153342,0.20107019,57835.0,57822.0,0.08596599]
[1725249153552,0.20107019,57835.0,57823.0,0.02481556]
[1725249153965,0.00818,57837.0,57823.0,0.005]
[1725249154227,0.00818,57837.0,57836.0,0.014]
[1725249154664,0.00818,57837.0,57821.0,0.005]
[1725249154891,0.00818,57837.0,57823.0,0.014]
[1725249155105,0.00818,57837.0,57824.0,0.0373249]
[1725249155323,0.20925019,57837.0,57824.0,0.02481164]
[1725249155546,0.1,57836.0,57824.0,0.02481164]
[1725249156790,0.1,57836.0,57820.0,0.1863]
[1725249157008,0.1,57836.0,57825.0,0.02480772]
[1725249157218,0.1,57836.0,57821.0,0.0369255]
[1725249157432,0.1,57836.0,57826.0,0.02480379]
[1725249157650,0.1,57836.0,57824.0,0.014]
[1725249157867,0.1,57836.0,57825.0,0.02480772]
[1725249158283,0.1,57836.0,57825.0,0.014]
[1725249158497,0.1,57836.0,57826.0,0.02480379]
[1725249158926,0.1862,57834.0,57826.0,0.02480379]
[1725249159135,0.20107019,57832.0,57826.0,0.02480379]
[1725249159352,0.1,57831.0,57826.0,0.02480379]
[1725249159564,0.595861,57831.0,57826.0,0.02480379]
[1725249159773,0.595861,57831.0,57820.0,0.4771]
[1725249159774,0.297061,57830.0,57820.0,0.4771]
[1725249159996,0.1,57831.0,57827.0,0.02479987]
[1725249160204,0.104508,57830.0,57826.0,0.014]
[1725249160421,0.104508,57830.0,57820.0,0.4771]
[1725249160635,0.1,57829.0,57827.0,0.02479987]
[1725249160858,0.1,57829.0,57826.0,0.014]
[1725249161076,0.20925019,57837.0,57827.0,0.08735822]
[1725249161077,0.00818,57837.0,57827.0,0.08735822]
[1725249161289,0.00818,57837.0,57828.0,0.02531582]
[1725249161750,0.00818,57837.0,57832.0,0.172913]
[1725249161954,0.00818,57837.0,57833.0,0.358611]
[1725249162165,0.00818,57837.0,57836.0,0.172902]
[1725249162376,0.00818,57837.0,57836.0,0.71256435]
[1725249162604,0.000818,57847.0,57836.0,0.71256435]
[1725249162605,0.000818,57847.0,57838.0,1.08055219]
[1725249162854,0.000818,57847.0,57845.0,0.709026]
[1725249163059,0.000818,57847.0,57845.0,1.054777]
[1725249163267,0.000818,57847.0,57845.0,0.74375526]
[1725249163473,0.000818,57847.0,57845.0,1.11250626]
[1725249163682,0.000818,57847.0,57845.0,0.21012926]
[1725249163916,0.000818,57847.0,57845.0,0.02472926]
[1725249164117,0.106718,57846.0,57845.0,0.02472926]
[1725249164340,0.30778819,57846.0,57836.0,0.014]
[1725249164762,0.000817,57837.0,57836.0,0.014]
[1725249165172,0.000817,57837.0,57836.0,0.02329]
[1725249165373,0.000817,57837.0,57836.0,0.014]
[1725249165600,0.000817,57837.0,57829.0,0.0008987]
[1725249166882,0.000817,57837.0,57829.0,0.0118987]
[1725249167952,0.01811536,57846.0,57829.0,0.0118987]
[1725249168212,0.01811536,57846.0,57830.0,0.02751307]
[1725249168418,0.01811536,57846.0,57831.0,0.172917]
[1725249169247,0.01811536,57846.0,57830.0,0.02751307]
[1725249170102,0.01811536,57846.0,57831.0,0.002]
[1725249170539,0.01811536,57846.0,57836.0,0.005]
[1725249170746,0.01811536,57846.0,57842.0,0.005]
[1725249170953,0.01811536,57846.0,57843.0,0.273179]
[1725249171162,0.01811536,57846.0,57843.0,0.1003]
[1725249171425,0.01811536,57846.0,57845.0,0.172875]
[1725249171625,0.000818,57847.0,57846.0,0.633917]
[1725249171848,0.000818,57847.0,57846.0,1.086662]
[1725249172089,0.01811196,57854.0,57846.0,1.086662]
[1725249172090,0.01811196,57854.0,57853.0,0.72662419]
[1725249172306,0.01811196,57854.0,57853.0,1.25262719]
[1725249172514,0.00817,57864.0,57857.0,0.518518]
[1725249172737,0.01810874,57861.0,57857.0,0.518518]
[1725249172980,0.01810874,57861.0,57857.0,0.172839]
[1725249173241,0.01810874,57861.0,57857.0,0.17629512]
[1725249173675,0.01810874,57861.0,57857.0,0.00345612]
[1725249173897,0.01810874,57861.0,57853.0,0.014]
[1725249175582,0.01810874,57861.0,57847.0,0.1053]
[1725249175790,0.01810874,57861.0,57857.0,0.014]
[1725249176222,0.01810874,57861.0,57857.0,0.0386822]
[1725249176428,0.01810874,57861.0,57847.0,0.278167]
[1725249176632,0.01810874,57861.0,57857.0,0.0246822]
[1725249176837,0.01810874,57861.0,57847.0,0.1053]
[1725249177042,0.01810874,57861.0,57857.0,0.0246822]
[1725249177449,0.01810874,57861.0,57853.0,0.014]
[1725249177851,0.01810874,57861.0,57854.0,0.02469397]
[1725249178917,0.1058,57857.0,57845.0,0.4771]
[1725249179335,0.1058,57857.0,57847.0,0.014]
[1725249179336,0.1,57856.0,57847.0,0.014]
[1725249179607,0.0776,57855.0,57847.0,0.014]
[1725249179785,0.0776,57855.0,57848.0,0.02471749]
[1725249180198,0.0776,57855.0,57845.0,0.4911]
[1725249180410,0.0776,57855.0,57849.0,0.02471357]
[1725249180618,0.0776,57855.0,57845.0,0.4771]
[1725249180825,0.0776,57855.0,57850.0,0.02470965]
[1725249181051,0.0776,57855.0,57845.0,0.4771]
[1725249181275,0.23676745,57852.0,57851.0,0.02470573]
[1725249181498,0.23676745,57852.0,57845.0,0.4771]
[1725249181685,0.33676745,57852.0,57851.0,0.02470573]
[1725249182121,0.33676745,57852.0,57848.0,0.014]
[1725249182345,0.1,57851.0,57848.0,0.014]
[1725249182551,0.1,57851.0,57845.0,0.4771]
[1725249183198,0.1,57851.0,57846.0,0.05116747]
[1725249183473,0.1,57851.0,57846.0,0.17632799]
[1725249183677,0.00818,57858.0,57847.0,0.172868]
[1725249183891,0.00818,57858.0,57850.0,0.172859]
[1725249184065,0.00818,57858.0,57850.0,0.20854057]
[1725249184319,0.00818,57858.0,57850.0,0.03568157]
[1725249184538,0.00818,57858.0,57851.0,0.172857]
[1725249184791,0.00818,57858.0,57850.0,0.03568157]
[1725249185001,0.00818,57858.0,57851.0,0.172856]
[1725249185203,0.00818,57858.0,57850.0,0.20854157]
[1725249185406,0.00818,57858.0,57851.0,0.172857]
[1725249186057,0.00818,57858.0,57845.0,0.4771]
[1725249186269,0.1021,57857.0,57845.0,0.4771]
[1725249186476,0.1,57856.0,57845.0,0.4771]
[1725249187117,0.0824,57855.0,57845.0,0.4771]
[1725249187360,0.23676745,57852.0,57851.0,0.014]
[1725249187786,0.33676745,57852.0,57851.0,0.014]
[1725249188026,0.35488281,57852.0,57851.0,0.014]
[1725249188657,0.35488281,57852.0,57840.0,1.27]
[1725249188863,0.1,57851.0,57840.0,0.4771]
[1725249189071,0.1,57851.0,57845.0,0.014]
[1725249189486,0.1,57851.0,57846.0,0.02472533]
[1725249190317,0.1,57851.0,57840.0,0.4861]
[1725249190522,0.1,57851.0,57847.0,0.02472141]
[1725249190724,0.1,57851.0,57840.0,0.4861]
[1725249191174,0.1,57851.0,57841.0,0.02474494]
[1725249191978,0.101,57851.0,57846.0,0.007]
[1725249192465,0.1,57851.0,57847.0,0.02472141]
[1725249192851,0.1,57851.0,57841.0,0.006]
[1725249193083,0.1464412,57851.0,57841.0,0.006]
[1725249193288,0.1464412,57851.0,57840.0,0.4771]
[1725249193289,0.1464412,57851.0,57842.0,0.02474102]
[1725249193536,0.1464412,57851.0,57840.0,0.4771]
[1725249193807,0.1464412,57851.0,57846.0,0.006]
[1725249194539,0.1464412,57851.0,57847.0,0.02472141]
[1725249194540,0.209473,57850.0,57847.0,0.02472141]
[1725249194808,0.23676745,57848.0,57847.0,0.02472141]
[1725249195076,0.23676745,57848.0,57840.0,0.4771]
[1725249195302,0.1,57847.0,57840.0,0.4771]
[1725249195577,0.1,57847.0,57841.0,0.03074494]
[1725249196104,0.1,57847.0,57841.0,0.02474494]
[1725249197108,0.101,57847.0,57841.0,0.03474494]
[1725249197747,0.001,57847.0,57841.0,0.03474494]
[1725249197966,0.001,57847.0,57842.0,0.05118449]
[1725249198207,0.001,57847.0,57843.0,0.00345731]
[1725249198417,0.001,57847.0,57842.0,0.02474102]
[1725249198631,0.001,57847.0,57844.0,0.02473318]
[1725249198841,0.001,57847.0,57843.0,0.0247371]
[1725249199053,0.001,57847.0,57840.0,0.4771]
[1725249199054,0.01811536,57852.0,57845.0,0.02503366]
[1725249199261,0.01811536,57852.0,57844.0,0.02503759]
[1725249199494,0.001,57847.0,57842.0,0.01]
[1725249199697,0.001,57847.0,57845.0,0.02503366]
[1725249199909,0.01811536,57852.0,57842.0,0.0134574]
[1725249199910,0.01811536,57852.0,57846.0,0.00345709]
[1725249200123,0.01811536,57852.0,57846.0,0.02848683]
[1725249200392,0.001,57847.0,57846.0,0.02502974]
[1725249200601,0.01811536,57852.0,57841.0,0.0008987]
[1725249200822,0.0300086,57852.0,57846.0,0.02502974]
[1725249201028,0.0300086,57852.0,57841.0,0.0008987]
[1725249201029,0.0300086,57852.0,57841.0,0.1737847]
[1725249201241,0.01811536,57852.0,57841.0,0.1737847]
[1725249201446,0.01811536,57852.0,57842.0,0.02504543]
[1725249202378,0.01811536,57852.0,57843.0,0.08225708]
[1725249202596,0.01811536,57852.0,57846.0,0.518616]
[1725249202597,0.001,57847.0,57846.0,0.518616]
[1725249202799,0.001,57847.0,57846.0,0.86436]
[1725249203002,0.01811536,57852.0,57846.0,0.12922974]
[1725249203221,0.01811536,57852.0,57851.0,0.518572]
[1725249203454,0.01911536,57852.0,57851.0,0.172857]
[1725249203671,0.01911536,57852.0,57851.0,0.02501014]
[1725249203873,0.01811536,57852.0,57851.0,0.02501014]
[1725249204568,0.01811536,57852.0,57846.0,0.1042]
[1725249204751,0.01811536,57852.0,57851.0,0.02501014]
[1725249204961,0.01811536,57852.0,57846.0,0.27707]
[1725249205221,0.01811536,57852.0,57851.0,0.02501014]
[1725249205400,0.01911536,57852.0,57851.0,0.02501014]
[1725249205609,0.01911536,57852.0,57846.0,0.29107]
[1725249205825,0.01911536,57852.0,57851.0,0.02501014]
[1725249206072,0.01811536,57852.0,57851.0,0.02501014]
[1725249206472,0.01811536,57852.0,57846.0,0.27707]
[1725249206745,0.01811536,57852.0,57836.0,0.54814903]
[1725249206746,0.11871536,57852.0,57851.0,0.03901014]
[1725249206952,0.1507031,57852.0,57851.0,0.03901014]
[1725249207163,0.21871536,57852.0,57851.0,0.014]
[1725249207814,0.77718536,57852.0,57851.0,0.014]
[1725249208019,0.29931536,57852.0,57851.0,0.014]
[1725249208833,0.29931536,57852.0,57837.0,0.1042]
[1725249208834,0.29831536,57852.0,57837.0,0.1042]
[1725249209040,0.16296991,57851.0,57837.0,0.1042]
[1725249209240,0.16296991,57851.0,57846.0,0.014]
[1725249209640,0.16296991,57851.0,57847.0,0.02502582]
[1725249210029,0.16296991,57851.0,57841.0,0.0148987]
[1725249210232,0.0613319,57850.0,57841.0,0.0148987]
[1725249210361,0.0613319,57850.0,57842.0,0.02504543]
[1725249210884,0.20034503,57848.0,57847.0,0.014]
[1725249211084,0.55643603,57848.0,57847.0,0.014]
[1725249211288,0.54151203,57848.0,57847.0,0.014]
[1725249211489,0.30034503,57848.0,57847.0,0.014]
[1725249212178,0.1,57850.0,57846.0,0.0008987]
[1725249212378,0.20034503,57850.0,57847.0,0.02502582]
[1725249212593,0.280993,57849.0,57846.0,0.0008987]
[1725249212794,0.280993,57849.0,57848.0,0.0250219]
[1725249212995,0.280993,57849.0,57846.0,0.0008987]
[1725249213198,0.25006699,57852.0,57848.0,0.0250219]
[1725249213377,0.25006699,57852.0,57847.0,0.03895439]
[1725249213584,0.25006699,57852.0,57847.0,0.014]
[1725249213787,0.25006699,57852.0,57848.0,0.02495047]
[1725249213788,0.06986699,57852.0,57848.0,0.02495047]
[1725249213984,0.06986699,57852.0,57846.0,0.0008987]
[1725249214191,0.001,57849.0,57848.0,0.014]
[1725249214599,0.001,57849.0,57848.0,0.29422295]
[1725249214804,0.001,57849.0,57848.0,0.1179]
[1725249215040,0.001,57849.0,57848.0,0.367866]
[1725249215245,0.001,57849.0,57848.0,0.79032618]
[1725249215441,0.06986699,57852.0,57851.0,0.172857]
[1725249215860,0.07086699,57852.0,57847.0,0.012]
[1725249216201,0.06986699,57852.0,57846.0,0.0008987]
[1725249216639,0.001,57849.0,57848.0,0.014]
[1725249217013,0.06986699,57852.0,57846.0,0.0008987]
[1725249217217,0.12280846,57852.0,57846.0,0.0008987]
[1725249217425,0.1,57851.0,57846.0,0.0128987]
[1725249217831,0.752292,57850.0,57846.0,0.0128987]
[1725249218029,0.0985,57850.0,57846.0,0.0128987]
[1725249218823,0.0985,57850.0,57846.0,0.0008987]
[1725249219217,0.0985,57850.0,57846.0,0.0138987]
[1725249219554,0.787553,57849.0,57846.0,0.0008987]
[1725249219772,0.1,57848.0,57846.0,0.0008987]
[1725249219981,0.991112,57847.0,57846.0,0.0078987]
[1725249220178,1.091112,57847.0,57846.0,0.0078987]
[1725249220388,1.030799,57847.0,57846.0,0.0008987]
[1725249220588,1.006595,57847.0,57846.0,0.0008987]
[1725249220791,1.12008136,57847.0,57846.0,0.0088987]
[1725249220991,1.05565136,57847.0,57846.0,0.0088987]
[1725249221191,0.942165,57847.0,57846.0,0.0088987]
[1725249222127,0.942165,57847.0,57846.0,0.0008987]
[1725249222327,0.943165,57847.0,57846.0,0.0118987]
[1725249222551,1.126965,57847.0,57846.0,0.0118987]
[1725249222758,1.25248836,57847.0,57846.0,0.0118987]
[1725249223189,1.126965,57847.0,57846.0,0.0118987]
[1725249223318,1.12526558,57847.0,57846.0,0.0118987]
[1725249223536,1.12426558,57847.0,57846.0,0.0008987]
[1725249223934,1.13326558,57847.0,57846.0,0.0018987]
[1725249224400,0.61089358,57847.0,57846.0,0.0018987]
[1725249224844,0.50962358,57847.0,57846.0,0.0018987]
[1725249225178,0.50062358,57847.0,57846.0,0.0008987]
[1725249225812,0.31093158,57847.0,57846.0,0.0008987]
[1725249226020,0.2838,57847.0,57846.0,0.0018987]
[1725249227206,0.1,57847.0,57846.0,0.0018987]
[1725249227426,0.000817,57850.0,57846.0,0.02685701]
[1725249227631,0.02713083,57847.0,57846.0,0.0018987]
[1725249227843,0.55441283,57847.0,57846.0,0.0018987]
[1725249228052,0.51091696,57847.0,57846.0,0.0018987]
[1725249228252,0.53834896,57847.0,57846.0,0.0008987]
[1725249228461,0.51121813,57847.0,57846.0,0.0008987]
[1725249228678,0.51121813,57847.0,57846.0,0.0038987]
[1725249228874,0.45491913,57847.0,57846.0,0.0038987]
[1725249229083,0.1,57847.0,57846.0,0.0038987]
[1725249229517,0.07781406,57847.0,57846.0,0.0038987]
[1725249229945,0.17781406,57847.0,57846.0,0.0038987]
[1725249230606,0.1,57847.0,57846.0,0.0038987]
[1725249230819,0.10455913,57850.0,57846.0,0.10994857]
[1725249230820,0.05187701,57849.0,57846.0,0.10994857]
[1725249231037,0.000817,57850.0,57847.0,0.1809]
[1725249231281,0.000817,57850.0,57849.0,0.172863]
[1725249231492,0.000817,57850.0,57849.0,1.04867359]
[1725249231913,0.000817,57850.0,57849.0,1.39940059]
[1725249232118,0.000817,57855.0,57854.0,0.172848]
[1725249232333,0.000817,57855.0,57854.0,1.22473905]
[1725249232547,0.001,57880.0,57863.0,1.02825111]
[1725249232751,0.001,57880.0,57863.0,1.12555111]
[1725249232963,0.1,57877.0,57863.0,1.23530622]
[1725249233198,0.1,57877.0,57863.0,1.31830622]
[1725249233606,0.1,57877.0,57863.0,0.81252111]
[1725249233819,0.1,57877.0,57863.0,0.46687711]
[1725249233820,0.002,57876.0,57863.0,0.46687711]
[1725249234025,0.002,57876.0,57863.0,0.353122]
[1725249235005,0.00917,57864.0,57863.0,0.367122]
[1725249235670,0.00817,57864.0,57863.0,0.37316557]
[1725249235839,0.00817,57864.0,57863.0,0.20034357]
[1725249236017,0.00917,57864.0,57863.0,0.21434357]
[1725249236618,0.09998253,57883.0,57863.0,0.21434357]
[1725249236826,1.55158407,57882.0,57863.0,0.1943]
[1725249237033,1.214707,57881.0,57864.0,0.02004052]
[1725249237246,0.02711627,57879.0,57864.0,0.02004052]
[1725249237440,0.02711627,57879.0,57863.0,0.1943]
[1725249237441,0.620434,57878.0,57863.0,0.1943]
[1725249237636,0.06475503,57877.0,57863.0,0.1943]
[1725249237976,0.1914,57876.0,57863.0,0.1803]
[1725249238206,0.1914,57876.0,57864.0,0.02004052]
[1725249238412,0.784449,57878.0,57864.0,0.01904052]
[1725249238619,0.02613307,57882.0,57864.0,0.01904052]
[1725249238620,2.15629556,57881.0,57864.0,0.01904052]
[1725249238817,0.07783182,57882.0,57863.0,0.003456]
[1725249238818,0.89302,57880.0,57863.0,0.003456]
[1725249239048,0.64472,57879.0,57865.0,0.01998191]
[1725249239209,0.001,57876.0,57864.0,0.06804056]
[1725249239415,0.001,57876.0,57866.0,0.01997887]
[1725249239590,0.001,57876.0,57864.0,0.0480556]
[1725249239793,0.1028,57879.0,57867.0,0.01997582]
[1725249239991,0.02711734,57874.0,57864.0,0.0480556]
[1725249240192,0.1,57878.0,57868.0,0.01997277]